Cogmind - Beta 16 @@@ ROGUE MODE // 2026.01.16 @ 22:46:02 Player: teh_pwnerer Result: Destroyed by Y-45 Defender with Beam Rifle Performance ------------- Evolutions (1) 500 Regions Visited (3) 600 Robots Destroyed (26) 130 Value Destroyed (713) 713 Prototype IDs (0) 0 Alien Tech Used (0) 0 Bonus (0) 0 TOTAL SCORE: 1943 Bonus ------- None Cogmind --------- Core Integrity 0/400 Matter 201/300 Energy 121/125 System Corruption 1% Temperature Cool (29) Movement Treading (160) Location -9/Storage Parts ------- > --- POWER (1) -------- Light Ion Engine > --- PROPULSION (4) --- Light Treads Light Treads > --- UTILITY (2) ------ Targeting Computer > --- WEAPON (2) ------- Heavy Assault Rifle > --- INVENTORY (5) ---- Small Laser Small Laser Beam Rifle Peak State ------------ > --- POWER ------------ Ion Engine > --- PROPULSION ------- Wheel Wheel > --- UTILITY ---------- Seismic Detector Targeting Computer > --- WEAPON ----------- Minigun Grenade Launcher > --- INVENTORY -------- Small Laser Mining Laser [Rating: 9] Favorites ----------- Power Ion Engine Engine Ion Engine Propulsion Wheel Treads Light Treads Wheel Wheel Utility Seismic Detector Device Seismic Detector Processor Targeting Computer Weapon Minigun Energy Gun Beam Rifle Ballistic Gun Minigun Launcher Grenade Launcher Special Weapon Mining Laser Build | -11 -10 -9 -9 ------- Run | Yrd Mat Mat Sto Slots Evolved 2 | . . 2 . Power . | . . . . Propulsion 2 | . . 2 . Utility . | . . . . Weapon . | . . . . Parts Attached 23 | 7 2 4 10 Power 2 | 1 . . 1 Engine 2 | 1 . . 1 Core . | . . . . Reactor . | . . . . Propulsion 7 | 2 . 2 3 Treads 3 | . . . 3 Leg . | . . . . Wheel 4 | 2 . 2 . Hover . | . . . . Flight . | . . . . Utility 3 | 2 . 1 . Device 2 | 2 . . . Storage . | . . . . Processor 1 | . . 1 . Hackware . | . . . . Protection . | . . . . Artifact . | . . . . Weapon 11 | 2 2 1 6 Energy Gun 4 | 1 . . 3 Energy Cannon . | . . . . Ballistic Gun 4 | 1 1 1 1 Ballistic Cannon . | . . . . Launcher 2 | . 1 . 1 Special Weapon 1 | . . . 1 Impact Weapon . | . . . . Slashing Weapon . | . . . . Piercing Weapon . | . . . . Special Melee Weapon . | . . . . Unidentified Prototypes . | . . . . Parts Lost 13 | . 1 2 10 Power 1 | . . . 1 Propulsion 4 | . . 2 2 Utility 2 | . 1 . 1 Weapon 6 | . . . 6 Highest Loss Streak 3 | . 1 2 3 To Critical Strikes . | . . . . Average Backups 3 | 3 4 3 3 Power . | . . . . Propulsion 1 | 1 2 1 . Utility . | . . . . Weapon 2 | 1 2 2 2 Tool/Special . | . . . . Unused Backups 5 | 2 . . 3 Power . | . . . . Propulsion 2 | 2 . . . Utility . | . . . . Weapon 3 | . . . 3 Tool/Special . | . . . . Average Slot Usage (%) 66 | . 86 71 59 Engine 6 | . 14 11 2 Treads 4 | . . . 6 Wheel 15 | . 28 19 11 Device 9 | . 15 11 7 Processor 8 | . . 8 11 Energy Gun 6 | . 1 . 9 Ballistic Gun 10 | . 14 11 9 Launcher 4 | . 12 11 1 Peak Build Rating 9 | 7 7 9 9 Average Rating 6 | 4 6 7 7 On Entrance 5 | . 7 6 9 Avg Prop Armor Cover (%) . | . . . . Naked Turns . | . . . . Heaviest Build 12 | 10 11 12 12 Greatest Support 40 | 20 20 20 40 Greatest Overweight (x) 3 | . . 3 1 Average Overweight (x) . | . . . . Largest Inventory Capacity 5 | 5 5 5 5 Average Capacity 5 | 5 5 5 5 Most Carried 5 | 5 5 5 4 Average Carried 3 | 3 4 3 3 Final Capacity 5 | 5 5 5 5 Final Carried 5 | 4 5 2 3 Class Distribution -------------------- 75% | Mutant 24% | Scavenger-Mutant Dominant Class ---------------- Mutant | -10/Materials Mutant | -9/Materials Mutant | -9/Storage Resources | -11 -10 -9 -9 ----------- Run | Yrd Mat Mat Sto Matter Collected 761 | 306 77 34 344 Remotely 84 | 84 . . . Salvage Created 778 | 138 69 141 430 Parts 50 | 11 6 7 26 Haulers Intercepted . | . . . . Recyclers Shooed 2 | 1 . 1 . Parts Field Recycled . | . . . . Retrieved Matter . | . . . . Parts Self-Destructed . | . . . . Prevented . | . . . . Parts Restored . | . . . . Kills | -11 -10 -9 -9 ------- Run | Yrd Mat Mat Sto Combat Hostiles Destroyed 21 | . 4 4 13 Guns 14 | . 1 2 11 AOE 7 | . 3 2 2 Classes Destroyed 6 | 2 2 2 . Tunneler 3 | 3 . . . Recycler 1 | 1 . . . Watcher 1 | . . 1 . Swarmer 6 | . 3 . 3 Grunt 8 | . 1 1 6 Sentry 7 | . . 3 4 Best Kill Streak 5 | 2 3 5 3 Combat Bots Only 4 | . 3 4 3 Max Kills in Single Turn 2 | 1 2 1 1 Gunslinging . | . . . . Exploded 2 | . 2 1 1 Melee . | . . . . Uniques/NPCs Destroyed . | . . . . Combat | -11 -10 -9 -9 -------- Run | Yrd Mat Mat Sto Hostile Shots Fired 175 | . 17 34 124 Missed 47 | . 6 13 28 Hits 128 | . 11 21 96 Projectile 128 | . 11 21 96 Critical Strikes 7 | . 1 1 5 Damage Taken 1635 | . 160 290 1185 Core 457 | . 51 75 331 Absorbed by Shields . | . . . . Core Remaining (%) 89 | 100 79 . . Volleys Fired 95 | 12 6 13 64 Largest 2 | 2 2 2 2 Hottest 105 | 60 50 55 105 Shots Fired 159 | 24 9 26 100 Gun 133 | 24 4 13 92 Cannon . | . . . . Launcher 25 | . 5 13 7 Special 1 | . . . 1 Kinetic 71 | 12 4 13 42 Thermal 63 | 12 . . 51 Explosive 25 | . 5 13 7 Electromagnetic . | . . . . Robot Hit Streak 27 | 5 7 8 27 Robot Miss Streak 3 | 1 . 2 3 Penetration Max . | . . . . Secondary Targets 1 | . . . 1 Max Gunslinging Chain 1 | . . . 1 Shots Hit Robots 104 | 13 6 16 69 Core Hits 48 | 5 6 15 22 Critical Kills . | . . . . Critical Parts Destroyed . | . . . . Critical Strikes 2 | . . . 2 Burn 2 | . . . 2 Melee Attacks . | . . . . Impact . | . . . . Slashing . | . . . . Piercing . | . . . . Sneak Attacks . | . . . . Combat Hostiles . | . . . . Follow-up Attacks . | . . . . Damage Inflicted 1978 | 169 242 469 1098 Guns 1244 | 169 25 90 960 Cannons . | . . . . Explosions 730 | . 217 379 134 Melee . | . . . . Ramming 4 | . . . 4 Kinetic 677 | 80 25 90 482 Thermal 567 | 89 . . 478 Explosive 730 | . 217 379 134 Electromagnetic . | . . . . Impact . | . . . . Slashing . | . . . . Piercing . | . . . . Highest Corruption 1 | . . . 1 Average Corruption 1 | . . . 1 Corruption Purged . | . . . . Corruption Blocked . | . . . . Effects 5 | . . . 5 Message Errors 3 | . . . 3 Matter Fused 2 | . . . 2 Overload Shots . | . . . . Overflow Damage 24 | . . 8 16 Projectiles . | . . . . Explosions 24 | . . 8 16 Melee . | . . . . Knockbacks . | . . . . Impact . | . . . . Kinetic . | . . . . Secondary . | . . . . Self-Inflicted Damage 112 | . 72 . 40 Shots 3 | . 2 . 1 Rammed 4 | . . . 4 Targets Rammed 4 | . . . 4 Kicked . | . . . . Crushed . | . . . . Highest Temperature 168 | . 2 22 168 Average Temperature 52 | . 2 8 57 Received Heat Transfer 513 | . 6 111 396 Siege Activations . | . . . . Martial Activations . | . . . . Shielding Activations . | . . . . Robots Disrupted . | . . . . Combat Hostiles . | . . . . Robots Corrupted . | . . . . Combat Hostiles . | . . . . Parts Fried . | . . . . Impact Corruptions . | . . . . Robots Melted . | . . . . Combat Hostiles . | . . . . Parts Melted 1 | . . . 1 Heat Transferred 1534 | 200 . . 1334 Parts Sabotaged . | . . . . Parts Stolen . | . . . . Parts Stripped . | . . . . Power Chain Reactions . | . . . . Alert | -11 -10 -9 -9 ------- Run | Yrd Mat Mat Sto Maximum Alert Level . | . . . . Low Security (%) 100 | 100 100 100 100 Level 1 . | . . . . Level 2 . | . . . . Level 3 . | . . . . Level 4 . | . . . . Level 5 . | . . . . High Security . | . . . . Max Security . | . . . . Peak Influence 144 | 10 69 125 144 Initial 39 | . . 13 39 Average 35 | 1 27 54 39 Influence Increases 726 | 20 150 165 391 Destroy 0b10 Robot/C 420 | . 80 80 260 Destroy 0b10 Robot/NC 25 | 20 . 5 . Destroy Leader 142 | . 20 42 80 Successful Hack 5 | . . . 5 Disable Machine 15 | . 15 . . Destroy Structure 104 | . 35 38 31 Lose Combat Pursuer 15 | . . . 15 Influence Decreases 596 | 20 118 102 356 Entered New Map 75 | . . 19 56 Time Decay 430 | 20 108 63 239 Lost Part 91 | . 10 20 61 Squads Dispatched 5 | . 1 1 3 Investigation 1 | . 1 . . Extermination . | . . . . Reinforcement 3 | . . 1 2 Assault . | . . . . Garrison 1 | . . . 1 Intercept . | . . . . Searches Triggered . | . . . . Construction Impeded 1 | . . 1 . Haulers Reinforced . | . . . . Active Scanning Responses . | . . . . Cargo Convoy Interrupts . | . . . . Stealth | -11 -10 -9 -9 --------- Run | Yrd Mat Mat Sto Distress Signals 2 | . . 1 1 Communications Jammed . | . . . . Distress Signals . | . . . . Times Spotted 31 | . 5 8 18 Peak Tracking Total 5 | . 3 5 4 Tactical Retreats 1 | . . . 1 Traps | -11 -10 -9 -9 ------- Run | Yrd Mat Mat Sto Traps Triggered 1 | . . . 1 Indirectly . | . . . . Trap Hack Attempts . | . . . . Triggered . | . . . . Disarmed . | . . . . Reprogrammed . | . . . . Reused . | . . . . Traps Extracted . | . . . . Installed . | . . . . Triggered . | . . . . Machines | -11 -10 -9 -9 ---------- Run | Yrd Mat Mat Sto Machines Disabled 1 | . 1 . . Max in Single Turn 1 | . 1 . . Machines Repaired . | . . . . Machines Dismantled . | . . . . Machines Sabotaged . | . . . . Overloaded Fab Kills . | . . . . Hacking | -11 -10 -9 -9 --------- Run | Yrd Mat Mat Sto Machines Accessed 1 | . . . 1 Terminals 1 | . . . 1 Fabricators . | . . . . Repair Stations . | . . . . Recycling Units . | . . . . Scanalyzers . | . . . . Garrison Access . | . . . . Total Hacks 1 | . . . 1 Successful 1 | . . . 1 Failed . | . . . . Catastrophic . | . . . . Database Lockouts . | . . . . Manual . | . . . . Terminals 1 | . . . 1 Fabricators . | . . . . Repair Stations . | . . . . Recycling Units . | . . . . Scanalyzers . | . . . . Garrison Access . | . . . . Terminal Hacks 1 | . . . 1 Robot Schematic 1 | . . . 1 Fabricator Hacks . | . . . . Repair Station Hacks . | . . . . Recycling Unit Hacks . | . . . . Scanalyzer . | . . . . Garrison Access Hacks . | . . . . Unauthorized Hacks . | . . . . Terminals . | . . . . Fabricators . | . . . . Repair Stations . | . . . . Recycling Units . | . . . . Scanalyzers . | . . . . Garrison Access . | . . . . Data Cores Recovered . | . . . . Used . | . . . . Hacking Detections . | . . . . Full Trace Events . | . . . . Feedback Events . | . . . . Feedback Blocked . | . . . . Robot Schematics Acquired 1 | . . . 1 Robots Built . | . . . . Authchips . | . . . . Time . | . . . . Total Robot Build Rating . | . . . . Part Schematics Acquired . | . . . . Parts Built . | . . . . Authchips . | . . . . Time . | . . . . Total Part Build Rating . | . . . . Part Studies Acquired . | . . . . Parts Repaired . | . . . . Time . | . . . . Parts Recycled . | . . . . Recycled Matter . | . . . . Retrieved Matter . | . . . . Retrieved Components . | . . . . Parts Scanalyzed . | . . . . Part Schematics Acquired . | . . . . Parts Damaged . | . . . . Bothacking | -11 -10 -9 -9 ------------ Run | Yrd Mat Mat Sto Used RIF Installer . | . . . . Robots Hacked . | . . . . Non-combat . | . . . . Combat . | . . . . Robot Hacks Applied . | . . . . Relay Couplers Released . | . . . . Fabnet Peak Effective % . | . . . . Robots Rewired . | . . . . Allies Hacked . | . . . . Hacks Repelled . | . . . . Allies | -11 -10 -9 -9 -------- Run | Yrd Mat Mat Sto Total Allies . | . . . . Largest Group . | . . . . Highest-Rated Group . | . . . . Highest-Rated Ally . | . . . . Total Orders . | . . . . Ally Attacks . | . . . . Total Damage . | . . . . Kills . | . . . . Allies Corrupted . | . . . . Allies Melted . | . . . . Intel | -11 -10 -9 -9 ------- Run | Yrd Mat Mat Sto Active Infowar (turns) 1050 | 55 243 189 563 Seismic 1050 | 55 243 189 563 Robot Analysis Total . | . . . . Derelict Logs Recovered . | . . . . Drone Launches . | . . . . Drone Recoveries . | . . . . Exploration | -11 -10 -9 -9 ------------- Run | Yrd Mat Mat Sto Turns Passed 1393 | 153 243 189 808 Spaces Moved 827 | 137 232 142 316 Core 58 | 44 . 1 13 Treads 86 | . . . 86 Legs . | . . . . Wheels 683 | 93 232 141 217 Hover . | . . . . Flight . | . . . . Fastest Speed 50 | 50 80 80 80 Average Speed 87 | 70 80 80 102 Slowest Speed 200 | 80 80 200 160 Overloaded Moves . | . . . . Propulsion Burnouts . | . . . . Robots Hopped . | . . . . Potential Cave-ins 2 | . . 2 . Cave-ins Triggered . | . . . . Exploration Rate (%) 22 | 4 42 14 31 Regions Visited 3 Branch Regions 1 Pre-discovered Areas . | . . . . Known Exits Taken . | . . . . Unknown Exits Taken 3 | 1 1 1 . Scrap Searched . | . . . . Spaces Dug 1 | . . . 1 Terrain Destroyed 118 | . 33 46 39 Melee . | . . . . Projectile 1 | . . . 1 AOE 117 | . 33 46 38 Terrain Rammed . | . . . . Walls Destroyed . | . . . . Machines Disabled . | . . . . Actions | -11 -10 -9 -9 --------- Run | Yrd Mat Mat Sto Total 1342 | 170 281 190 701 Wait 360 | . 38 29 293 Move 824 | 136 231 141 316 Hop . | . . . . Pick Up 27 | 13 2 1 11 Fast Attach 1 | . . 1 . Attach 21 | 7 1 3 10 Detach . | . . . . Swap 2 | . 1 . 1 Drop 8 | 2 2 2 2 Fire 95 | 12 6 13 64 Melee . | . . . . Ram 3 | . . . 3 Kick . | . . . . Crush 1 | . . . 1 Escape Stasis . | . . . . Rewire . | . . . . Trap . | . . . . Miscellaneous . | . . . . Route ------- -11/Scrapyard -10/Materials (discovered 2 exits: [*Mat x2]) -9/Materials -9/Storage History --------- Turn | Location | Event 9 | -11/Scrapyard | Discovered new exit (range 14) 154 | -11/Scrapyard | Entered Materials 305 | -10/Materials | Build established: Mutant 313 | -10/Materials | Discovered new exit (range 9) 393 | -10/Materials | Discovered new exit (range 7) 397 | -10/Materials | Entered another Materials area 397 | -9/Materials | Evolved 2 slots: Propulsion x2 427 | -9/Materials | Discovered new exit (range 11) 586 | -9/Materials | Entered Storage 1106 | -9/Storage | Core integrity fell below 50% 1125 | -9/Storage | Lost 3 parts (1n2w) 1330 | -9/Storage | Core integrity fell below 20% 1347 | -9/Storage | Garrison activated, responded to threat 1394 | -9/Storage | Destroyed by Y-45 Defender with Beam Rifle Last Messages --------------- R-06 Scavenger collects Lgt. Treads. G-34 Mercenary suffers critical hit (Burn). G-34 Mercenary destroyed. Acquired 38 matter. G-47 Trooper destroyed. K-01 Serf collects debris. Acquired Sml. Laser. K-01 Serf calls for garrison support. ALERT: Activating Garrison Access S001. K-01 Serf sends out distress signal. Particle Gun destroyed. G-34 Mercenary destroyed. R-06 Scavenger collects Lgt. Nuclear Core. R-06 Scavenger collects Aluminum Leg. System corrupted: Matter fused (-10). Critical hit (Burn: +37). Slammed into W-16 Scout. Acquired 31 matter. Critical hit (Burn: +37). [Achievement: Deductive Reasoning] Map ----- +----------------------------------------------------+ | ???????????????????????????????????????? | | ???????????????????????????????????????? | | ???????????????????????????????????????? | | ???????????????????????????????????????? | | ???????????????????????????????????????? | | ???????????????????????????????????????? | | ???????????????????????????????????????? | | ???????????????????????????????????????? | | ???????????????????????????????????????? | | ???????????????????????????????????????? | | ???????????????????????????????????????? | | ???????????????????????????????????????? | | ???????????????????????????????????????? | | ???????? ????????????????????????????? | | ???????# ????????????????????????????? | | ???????# ????????????????????????????? | | ???????# ????????????????????????????? | | ???????# #???????????????????????????? | | ???????+ +???????????????????????????? | | ???????# #???????????????????????????? | | ???????# #???????????????????????????? | | ???????# #?????????????? ###????????? | | ???????# #???????????!!! ????????? | | ???????# #???????## !! #???????? | | ???????#k ####### m #???????? | | ???????# a %[Y@ #???????? | | ???????# #### #########??????????????? | | ???????# ####+######?????????????????? | | ???????# # #?????????????????? | | ?###???# # "" #?????????????????? | | ?###???#= # """ G" ##????????????????? | | ## ##### + """ "" #????????????????? | | # # # """ ##????????????????? | | # """ # # #?????????????????? | | # """ # # #?????????????????? | | # """ # # #?????????????????? | | # # #####"T"#+#?????????????????? | | # """ #= #???#"""# ??????????????????? | | # """[" #???#####???????????????????? | | # """ #* ######### #?????????????????? | | # [# #?????????????????? | | # ""# #?????????????????? | | # T"# +?????????????????? | | # ""# ######## ##?????????????????? | | # # #???????????????????????????? | | ######## ########+#??????????????????? | | # # # #??????????????????? | | # # # T #??????????????????? | | # + # #??????????????????? | | # # # #??????????????????? | +----------------------------------------------------+ Best States ------------- Heat Dissipation 28 Energy Generation 10 Energy Capacity 250 Matter Stores 300 Matter Capacity 300 Sight Range 16 Terrain Scan Density 10 Evasion (%) 50 Targeting Accuracy 5 Recoil Reduction 2 Item Schematics ----------------- None Robot Schematics ------------------ K-01 Serf | -9/Storage | Hacked Fabricated ------------ Nothing Repaired ---------- Nothing Studied --------- None Alien Tech Used ----------------- None Achievements -------------- Deductive Reasoning Resistances Are Futile Challenges ------------ None Game ------ Seed DrainedFlightPlatform Manual? 0 Play Time 00:24:09 Cumulative 6.9 hours Start 2026.01.16 @ 22:09:01 End 2026.01.16 @ 22:46:02 Sessions 1 Manual Loads 0 Difficulty Rogue Special Mode None Game No. 11 Rogue 11 Adventurer 0 Explorer 0 Win Type - Total 0 Types 0/0/0/0/0/0/0/0/0/0 Lore% 0 Gallery% 7 Achievement% 6 Wizard Run 0 Options --------- Layout 1 ASCII 0 Keyboard 0 Movement Mouse Keybinds 0 Fullscreen 1 Font 24/Smallcaps Map View 50x35 Zoom Use 0% Tactical HUD 0 Map Filters NONE Filters NONE Steam 1 RUN: c7430492-1c20-4401-a7e8-9177ba07dca8